bitfinex/quotes_SOLUSD_20241001
["timestamp","ask_amount","ask_price","bid_price","bid_amount"]
[1727812847072,0.82157947,145.69,145.63,8.2399]
[1727812847276,9.05827947,145.69,145.65,8.2385]
[1727812847506,14.3143,145.7,145.66,1.37299934]
[1727812847694,0.82157947,145.72,145.67,1.37289544]
[1727812847896,8.2356,145.71,145.67,8.2376]
[1727812848169,6.2355,145.74,145.68,1.37276551]
[1727812848304,15.2833,145.77,145.68,1.37276551]
[1727812848305,0.82157947,145.76,145.68,1.37276551]
[1727812848514,9.05437947,145.76,145.72,8.2349]
[1727812848839,6.2141,145.78,145.71,20.5887]
[1727812848840,0.82157947,145.75,145.71,20.5887]
[1727812849130,6.2141,145.78,145.71,20.5887]
[1727812849417,14.4458,145.78,145.73,8.2342]
[1727812849642,6.2141,145.78,145.73,20.5849]
[1727812849841,6.2141,145.78,145.74,8.2337]
[1727812850049,8.2311,145.79,145.74,8.2337]
[1727812850213,14.7946,145.81,145.76,8.2326]
[1727812850407,8.2314,145.79,145.75,20.5823]
[1727812850631,0.82157947,145.8,145.72,42.589]
[1727812850933,8.2327,145.76,145.72,20.5869]
[1727812851229,0.82157947,145.8,145.72,20.5869]
[1727812851443,8.2322,145.77,145.72,28.8218]
[1727812851730,0.82157947,145.8,145.75,8.2332]
[1727812852031,40.5778,145.79,145.69,8.2366]
[1727812852236,8.2339,145.74,145.69,8.2366]
[1727812852421,8.2331,145.76,145.71,8.235]
[1727812853516,8.2334,145.75,145.7,28.825]
[1727812853719,8.2338,145.74,145.7,20.5891]
[1727812854035,8.2338,145.74,145.7,28.8251]
[1727812854858,0.82157947,145.78,145.67,20.5937]
[1727812854859,8.2355,145.71,145.67,20.5937]
[1727812855135,8.2367,145.69,145.64,28.8374]
[1727812855334,8.2367,145.69,145.64,20.598]
[1727812855517,9.05777947,145.7,145.65,8.2388]
[1727812855716,8.2362,145.7,145.65,8.2388]
[1727812856015,8.2362,145.7,145.64,20.598]
[1727812856340,8.2362,145.7,145.65,8.2387]
[1727812856543,8.2382,145.67,145.61,20.6025]
[1727812856768,8.2382,145.67,145.62,8.2402]
[1727812857522,8.2382,145.67,145.61,20.6025]
[1727812857716,8.2382,145.67,145.63,8.24]
[1727812858345,8.2382,145.67,145.54,41.2237]
[1727812858346,8.2419,145.6,145.47,61.77782299]
[1727812858560,8.2435,145.57,145.47,61.77782299]
[1727812858836,8.2423,145.59,145.47,61.77782299]
[1727812859012,8.2423,145.59,145.42,73.7626489]
[1727812859219,0.82157947,145.58,145.52,20.6143]
[1727812859528,8.2434,145.57,145.52,28.8605]
[1727812860068,0.82157947,145.61,145.53,8.2457]
[1727812860240,8.2429,145.58,145.52,20.6143]
[1727812860437,20.0,145.62,145.52,20.6143]
[1727812860438,0.82157947,145.57,145.52,20.6143]
[1727812860621,7.079,145.65,145.52,20.6143]
[1727812860622,8.2429,145.58,145.52,28.86]
[1727812860841,8.2429,145.58,145.53,9.61926819]
[1727812861024,8.2424,145.59,145.52,20.6143]
[1727812861222,8.2424,145.59,145.54,8.2446]
[1727812861223,8.2423,145.59,145.54,8.2446]
[1727812861527,8.2413,145.61,145.55,1.37384585]
[1727812861723,8.2407,145.62,145.57,8.2434]
[1727812862543,7.079,145.65,145.49,103.01642299]
[1727812862544,9.06137947,145.64,145.58,9.61608259]
[1727812862727,9.06137947,145.64,145.59,8.2421]
[1727812863134,0.82157947,145.64,145.58,21.97968259]
[1727812863339,0.82157947,145.64,145.56,8.2434]
[1727812863340,8.2412,145.61,145.56,8.2434]
[1727812864255,8.2407,145.62,145.57,8.2434]
[1727812865345,20.6059,145.59,145.51,16.0776]
[1727812865546,8.2441,145.56,145.51,8.2467]
[1727812865727,0.82157947,145.58,145.49,20.6193]
[1727812865728,0.82157947,145.58,145.52,8.2462]
[1727812866032,0.82157947,145.58,145.51,28.863]
[1727812866033,8.2442,145.56,145.51,28.863]
[1727812866247,8.2442,145.56,145.51,20.6163]
[1727812866546,8.2432,145.58,145.53,8.2455]
[1727812866938,9.06507947,145.57,145.52,8.246]
[1727812867126,8.2435,145.57,145.52,8.246]
[1727812867320,0.82157947,145.56,145.46,15.098]
[1727812867522,6.4052,145.52,145.41,1.19325144]
[1727812867748,0.82157947,145.58,145.38,0.2193262]
[1727812867749,8.2532,145.4,145.38,0.2193262]
[1727812868036,0.82157947,145.39,145.38,0.2193262]
[1727812868232,20.0,145.53,145.38,0.2193262]
[1727812868233,8.2515,145.43,145.38,0.2193262]
[1727812868537,8.2504,145.45,145.38,8.4731262]
[1727812868746,8.2509,145.44,145.38,0.2193262]
[1727812868924,0.82157947,145.47,145.38,0.2193262]
[1727812868925,8.2516,145.43,145.38,0.2193262]
[1727812869123,20.62,145.49,145.38,0.2193262]
[1727812869358,20.0,145.51,145.38,0.2193262]
[1727812869359,0.82157947,145.48,145.38,0.2193262]
[1727812869544,8.2532,145.4,145.38,0.2193262]
[1727812869845,0.82157947,145.39,145.38,0.2193262]
[1727812872744,1.1957309,145.46,145.38,0.2193262]
[1727812872745,20.82157947,145.44,145.38,0.2193262]
[1727812872924,8.2522,145.42,145.38,0.2193262]
[1727812873122,21.17915957,145.49,145.38,0.2193262]
[1727812873123,0.82157947,145.41,145.38,0.2193262]
[1727812873338,8.2514,145.43,145.38,0.2193262]
[1727812873839,8.2507,145.45,145.38,8.4734262]
[1727812874143,0.82157947,145.48,145.4,8.253]
[1727812874641,8.252,145.42,145.38,0.2193262]
[1727812875135,8.2513,145.44,145.38,0.2193262]
[1727812875329,0.82157947,145.43,145.38,0.2193262]
[1727812875537,0.82157947,145.49,145.38,1.59477249]
[1727812875766,0.82157947,145.49,145.38,0.2193262]
[1727812875951,8.2502,145.45,145.39,8.2534]
[1727812876310,0.82157947,145.44,145.39,8.2534]
[1727812876613,8.2526,145.41,145.38,0.2193262]
[1727812877817,8.2536,145.39,145.38,0.2193262]
[1727812879426,8.6688,145.39,145.38,0.2193262]
[1727812880397,0.4152,145.39,145.38,0.2193262]
[1727812880819,8.6688,145.39,145.38,0.2193262]
[1727812882003,0.4152,145.39,145.38,0.2193262]
[1727812882209,1.23677947,145.39,145.38,0.2193262]
[1727812882426,0.4152,145.39,145.38,0.2193262]
[1727812883096,0.4152,145.39,145.38,8.4735262]
[1727812884818,0.4152,145.39,145.38,0.2193262]
[1727812886897,9.49037947,145.39,145.38,0.2193262]
[1727812888621,0.4152,145.39,145.38,0.2193262]
[1727812889010,8.6688,145.39,145.38,0.2193262]
[1727812890631,0.4152,145.39,145.38,0.2193262]
[1727812891023,9.49037947,145.39,145.38,0.2193262]
[1727812892729,0.4152,145.39,145.38,0.2193262]
[1727812893702,0.4152,145.39,145.38,23.4786262]
[1727812894105,0.4152,145.39,145.38,47.2555102]
[1727812894314,0.82157947,145.51,145.43,8.2513]
[1727812894497,8.249,145.48,145.43,8.2513]
[1727812894697,0.82157947,145.51,145.44,8.2505]
[1727812894698,8.248,145.49,145.44,8.2505]
[1727812894940,0.82157947,145.51,145.43,20.6278]
[1727812895115,0.82157947,145.51,145.42,8.2518]
[1727812895116,8.2498,145.46,145.42,8.2518]
[1727812895316,8.2492,145.47,145.42,8.2518]
[1727812895523,0.82157947,145.51,145.43,8.2509]
[1727812895524,8.2487,145.48,145.43,8.2509]
[1727812896829,0.82157947,145.51,145.44,8.2506]
[1727812897024,20.6166,145.52,145.42,20.6292]
[1727812897025,0.82157947,145.52,145.47,8.249]
[1727812897229,0.82157947,145.52,145.42,41.2595]
[1727812897230,9.06697947,145.54,145.48,20.6204]
[1727812897430,8.2446,145.55,145.48,20.6204]
[1727812897609,0.82157947,145.56,145.48,20.6204]
[1727812897799,8.2452,145.54,145.48,28.8684]
[1727812898005,8.2452,145.54,145.49,8.2478]
[1727812898703,8.2446,145.55,145.5,8.2473]
[1727812899129,0.82157947,145.58,145.51,1.3741889]
[1727812899336,0.82157947,145.58,145.49,20.6193]
[1727812899337,8.2458,145.53,145.49,20.6193]
[1727812899508,8.2452,145.54,145.49,28.8668]
[1727812901427,8.2452,145.54,145.49,20.6193]
[1727812901428,8.2457,145.53,145.49,20.6193]
[1727812902311,8.506,145.54,145.49,28.867]
[1727812902811,8.506,145.54,145.51,8.2467]
[1727812902812,0.2608,145.54,145.51,8.2467]
[1727812903321,0.2608,145.54,145.47,24.7419]
[1727812903322,8.2467,145.52,145.47,24.7419]
[1727812903632,8.2467,145.52,145.48,8.2484]
[1727812904428,0.2608,145.54,145.48,8.2484]
[1727812904429,8.2458,145.53,145.48,8.2484]
[1727812904821,8.506,145.54,145.5,8.2474]
[1727812905444,8.506,145.54,145.45,28.8749]
[1727812905445,8.2479,145.5,145.45,28.8749]
[1727812905735,8.2481,145.49,145.45,28.8749]
[1727812906430,8.249,145.48,145.43,23.6985]
[1727812906943,8.249,145.48,145.44,8.2507]
[1727812907532,21.43667947,145.53,145.44,8.2507]
[1727812907927,8.2486,145.48,145.44,8.2507]
[1727812908316,8.2486,145.48,145.43,8.2512]
[1727812908934,8.2474,145.5,145.44,20.6265]
[1727812909128,9.06787947,145.52,145.41,23.776884]
[1727812909317,8.2463,145.52,145.47,8.249]
[1727812909519,0.82157947,145.51,145.44,8.2502]
[1727812909825,8.2481,145.49,145.44,8.2502]
[1727812910539,0.82157947,145.48,145.4,48.42481408]
[1727812910749,8.2504,145.45,145.41,8.2523]
[1727812911039,8.2504,145.45,145.4,20.6319]
[1727812911040,20.6205,145.49,145.4,28.8848]
[1727812911221,0.82157947,145.48,145.39,15.5117]
[1727812911420,0.82157947,145.48,145.38,0.2193262]
[1727812911421,8.2531,145.4,145.38,0.2193262]
[1727812913241,8.2536,145.39,145.38,0.2193262]
[1727812915116,8.2532,145.4,145.38,0.2193262]
[1727812915533,8.2526,145.41,145.38,0.2193262]
[1727812915735,40.6245,145.46,145.38,0.2193262]
[1727812915736,8.2536,145.39,145.38,0.2193262]
[1727812916434,0.82157947,145.43,145.38,0.2193262]
[1727812916819,8.2519,145.42,145.38,8.4735262]
[1727812917019,8.2513,145.44,145.39,8.2535]
[1727812917348,8.2513,145.44,145.38,20.8542262]
[1727812917516,8.2513,145.44,145.4,8.253]
[1727812917716,8.2519,145.42,145.38,45.4088262]
[1727812918416,0.82157947,145.45,145.38,37.1548262]
[1727812918640,0.82157947,145.46,145.38,16.5199262]
[1727812918944,8.2498,145.46,145.41,8.2524]
[1727812919322,8.2497,145.46,145.41,8.2524]
[1727812919724,8.2513,145.44,145.4,20.6321]
[1727812919922,47.2613,145.51,145.38,0.2193262]
[1727812919923,8.2529,145.41,145.38,0.2193262]
[1727812920144,41.2472,145.47,145.38,0.2193262]
[1727812920145,0.82157947,145.4,145.38,0.2193262]
[1727812920472,8.2515,145.43,145.38,0.2193262]
[1727812920618,8.2506,145.45,145.4,8.253]
[1727812920821,9.07167947,145.46,145.38,0.2193262]
[1727812921036,8.2501,145.46,145.41,8.252]
[1727812921238,0.82157947,145.49,145.38,0.2193262]
[1727812921239,8.2491,145.47,145.43,8.2513]
[1727812921440,7.1991543,145.54,145.38,0.2193262]
[1727812921441,8.02073377,145.54,145.4,38.24484147]
[1727812921741,8.02073377,145.54,145.38,23.9962102]
[1727812921742,0.82157947,145.54,145.46,20.6228]
[1727812921936,7.1991543,145.59,145.51,8.2467]
[1727812921937,8.244,145.56,145.51,8.2467]
[1727812922244,0.82157947,145.58,145.5,20.6174]
[1727812922461,1.2617,145.65,145.54,8.2451]
[1727812922462,8.2418,145.6,145.54,8.2451]
[1727812922744,8.2418,145.6,145.55,8.2445]
[1727812923539,8.2412,145.61,145.56,8.2438]
[1727812923837,8.2412,145.61,145.49,38.24484147]
[1727812923838,1.04267947,145.6,145.46,15.5985]
[1727812924041,8.2423,145.59,145.53,8.2451]
[1727812924279,8.4628,145.6,145.54,8.2451]
[1727812924446,0.2211,145.6,145.54,20.6128]
[1727812924639,0.2211,145.6,145.56,8.2439]
[1727812925155,0.2211,145.6,145.54,20.6128]
[1727812925354,0.2211,145.6,145.55,8.244]
[1727812926062,8.244,145.56,145.51,8.2467]
[1727812926565,8.2435,145.57,145.51,8.2467]
[1727812926758,8.2435,145.57,145.52,8.2462]
[1727812927060,21.64707947,145.6,145.5,20.6172]
[1727812927240,8.2439,145.57,145.5,20.6172]
[1727812927560,0.0397,145.56,145.5,20.6172]
[1727812927750,0.0397,145.56,145.53,8.2454]
[1727812928062,8.2458,145.53,145.48,8.2484]
[1727812928449,8.2452,145.54,145.48,8.2484]
[1727812928765,8.2452,145.54,145.49,8.2477]
[1727812928942,8.2457,145.53,145.48,8.248]
[1727812929140,8.2463,145.52,145.47,28.8717]
[1727812929562,0.86127947,145.56,145.47,20.6227]
[1727812929865,8.2457,145.53,145.48,8.2484]
[1727812930044,0.82157947,145.52,145.43,20.6271]
[1727812930248,20.86127947,145.56,145.43,20.6271]
[1727812930451,8.2481,145.49,145.45,8.2501]
[1727812930947,8.2481,145.49,145.43,20.6271]
[1727812930948,8.2486,145.48,145.43,20.6271]
[1727812931150,0.82157947,145.53,145.39,16.3684]
[1727812931347,0.82157947,145.53,145.41,8.2524]
[1727812931348,8.2496,145.47,145.41,8.2524]
[1727812931546,20.6194,145.5,145.41,8.2524]
[1727812931547,0.82157947,145.49,145.41,8.2524]
[1727812931753,8.2497,145.46,145.41,8.2524]
[1727812931940,9.06847947,145.51,145.39,16.3684]
[1727812932145,48.4603543,145.56,145.47,8.249]
[1727812932146,8.2463,145.52,145.47,8.249]
[1727812932473,0.82157947,145.55,145.41,61.9577741]
[1727812932965,8.2457,145.53,145.48,28.8687]
[1727812933180,0.82157947,145.52,145.39,16.3684]
[1727812933340,0.0397,145.56,145.45,8.2501]
[1727812933341,8.2475,145.5,145.45,8.2501]
[1727812933545,8.2473,145.51,145.46,8.2495]
[1727812934456,8.2473,145.51,145.47,8.249]
[1727812935379,8.2473,145.51,145.44,20.6262]
[1727812935544,8.2473,145.51,145.47,8.249]
[1727812935866,0.82157947,145.53,145.48,9.62284478]
[1727812935867,8.2458,145.53,145.48,9.62284478]
[1727812936251,0.82157947,145.55,145.46,20.6235]
[1727812936444,8.2483,145.49,145.44,8.2503]
[1727812936648,20.0,145.52,145.43,20.6279]
[1727812936976,8.2489,145.48,145.43,8.2513]
[1727812937144,8.2484,145.49,145.44,8.2502]
[1727812937347,0.82157947,145.51,145.44,8.2502]
[1727812937546,8.2487,145.48,145.43,8.2512]
[1727812937756,8.2487,145.48,145.44,8.2508]
[1727812938265,8.2487,145.48,145.43,8.2513]
[1727812938486,8.2507,145.45,145.4,8.2529]
[1727812938769,8.2497,145.46,145.41,8.2519]
[1727812939389,8.2497,145.46,145.38,0.2193262]
[1727812939390,0.82157947,145.45,145.38,0.2193262]
[1727812939673,0.82157947,145.47,145.38,0.2193262]
[1727812940286,8.2532,145.4,145.38,0.2193262]
[1727812940592,9.07517947,145.39,145.38,0.2193262]
[1727812940750,8.2536,145.39,145.38,0.2193262]
[1727812943472,8.4747,145.39,145.38,0.2193262]
[1727812943857,0.2211,145.39,145.38,0.2193262]
[1727812944757,7.16580487,145.45,145.44,8.2508]
[1727812944950,0.82157947,145.59,145.43,61.9577741]
[1727812945146,0.82157947,145.59,145.49,8.2479]
[1727812945365,0.82157947,145.59,145.5,9.62170747]
[1727812945568,0.82157947,145.59,145.48,20.6206]
[1727812945876,8.2447,145.55,145.5,8.2472]
[1727812946254,8.2441,145.56,145.51,8.2464]
[1727812946594,0.82157947,145.59,145.52,21.98868107]
[1727812946749,21.8619,145.63,145.54,8.2446]
[1727812946750,9.06377947,145.6,145.54,8.2446]
[1727812946954,9.06377947,145.6,145.55,8.2443]
[1727812946955,8.2422,145.6,145.55,8.2443]
[1727812947651,0.82157947,145.62,145.53,1.37383059]
[1727812947851,26.9856,145.66,145.53,1.37383059]
[1727812947852,8.2412,145.61,145.56,8.244]
[1727812948066,0.82157947,145.6,145.56,8.244]
[1727812948254,9.06327947,145.6,145.54,28.8562]
[1727812948553,8.2417,145.6,145.54,28.8562]
[1727812948756,8.2435,145.57,145.51,28.8632]
[1727812948966,8.2435,145.57,145.52,8.2461]
[1727812949376,8.2435,145.57,145.51,20.6169]
[1727812949750,8.2435,145.57,145.52,8.2462]
[1727812950250,0.82157947,145.56,145.51,20.6169]
[1727812950447,20.6028,145.62,145.53,8.2452]
[1727812950448,8.2429,145.58,145.53,8.2452]
[1727812950969,8.2452,145.54,145.49,8.2474]
[1727812951159,0.82157947,145.53,145.47,20.6214]
[1727812951350,20.82157947,145.6,145.49,20.6188]
[1727812951571,41.42637947,145.6,145.49,20.6188]
[1727812952372,8.2439,145.57,145.52,8.2462]
[1727812952560,0.82157947,145.59,145.53,8.2456]
[1727812952561,8.2429,145.58,145.53,8.2456]
[1727812952758,0.0397,145.6,145.51,20.6161]
[1727812952759,8.2815,145.6,145.55,8.2444]
[1727812952967,9.10307947,145.6,145.56,9.61772751]
[1727812953172,0.0397,145.6,145.56,8.2439]
[1727812953378,0.0397,145.6,145.59,8.2423]
[1727812953587,0.0397,145.6,145.58,8.2428]
[1727812953959,0.0397,145.6,145.59,1.37346791]
[1727812954155,0.0397,145.6,145.58,8.2428]
[1727812954478,8.2412,145.61,145.54,20.6125]
[1727812954868,0.82157947,145.6,145.51,20.6169]
[1727812955254,0.82157947,145.64,145.52,1.37403732]
[1727812955573,0.82157947,145.64,145.51,61.9577741]
[1727812955574,8.2411,145.62,145.51,61.9577741]
[1727812955761,9.06127947,145.64,145.59,8.2423]
[1727812955961,9.06067947,145.65,145.6,8.2412]
[1727812956679,8.2384,145.66,145.61,8.2411]
[1727812957262,8.2384,145.66,145.6,20.6035]
[1727812957463,20.5904,145.7,145.6,28.8451]
[1727812957464,9.06097947,145.65,145.6,28.8451]
[1727812957676,8.2395,145.64,145.6,20.6035]
[1727812958176,8.2383,145.66,145.61,8.2406]
[1727812958590,0.82157947,145.69,145.6,20.6035]
[1727812958876,8.2372,145.68,145.63,8.2397]
[1727812959081,8.2406,145.62,145.56,16.454]
[1727812959271,8.2401,145.63,145.59,8.2422]
[1727812959455,8.2401,145.63,145.56,37.0633]
[1727812959456,8.2401,145.63,145.57,8.2429]
[1727812959659,8.2401,145.63,145.58,8.2425]
[1727812960073,8.2401,145.63,145.59,8.2422]
[1727812960456,0.82157947,145.67,145.59,8.2422]
[1727812960686,8.2394,145.64,145.6,8.2416]
[1727812961275,8.2394,145.64,145.59,8.2422]
[1727812962181,21.41707947,145.67,145.58,28.8492]
[1727812963080,20.5987,145.64,145.54,28.8572]
[1727812963279,8.2429,145.58,145.54,28.8572]
[1727812963481,8.2427,145.59,145.54,28.8572]
[1727812963686,8.244,145.56,145.51,28.8635]
[1727812963980,41.1951,145.65,145.5,54.1817643]
[1727812963981,8.2423,145.59,145.54,8.2447]
[1727812964160,8.2437,145.57,145.53,20.6137]
[1727812964360,8.2437,145.57,145.53,28.8593]
[1727812964683,8.2429,145.58,145.53,28.8593]
[1727812964895,8.2429,145.58,145.54,8.2449]
[1727812965066,8.2418,145.6,145.53,20.6137]
[1727812965262,8.2413,145.61,145.56,8.244]
[1727812965573,8.2413,145.61,145.57,8.2434]
[1727812966385,8.2444,145.56,145.52,20.6148]
[1727812966689,8.2444,145.56,145.52,28.861]
[1727812966884,8.2444,145.56,145.52,20.6148]
[1727812967186,8.2444,145.56,145.52,28.8608]
[1727812967381,0.82157947,145.6,145.52,28.8608]
[1727812967557,8.2436,145.57,145.52,28.8608]
[1727812967762,8.2429,145.58,145.53,8.2457]
[1727812967984,8.2429,145.58,145.52,20.6148]
[1727812968202,8.2417,145.61,145.54,20.6116]
[1727812968359,8.2417,145.61,145.52,41.2313]
[1727812968360,8.2413,145.61,145.57,8.243]
[1727812968563,0.82157947,145.64,145.53,23.776884]
[1727812968564,0.0397,145.56,145.55,8.2445]
[1727812968978,0.0397,145.56,145.54,20.6121]
[1727812968979,8.2839,145.56,145.51,20.6165]
[1727812969189,8.2839,145.56,145.52,8.2462]
[1727812969396,8.2446,145.55,145.51,28.863]
[1727812969580,8.2838,145.56,145.51,28.863]
[1727812969769,8.2838,145.56,145.52,8.2461]
[1727812969973,0.0397,145.56,145.53,8.2453]
[1727812970387,0.0397,145.56,145.53,28.8587]
[1727812970595,0.0397,145.56,145.48,103.18276798]
[1727812970799,8.2842,145.56,145.51,8.2466]
[1727812971098,8.2842,145.56,145.5,20.6176]
[1727812971391,8.2842,145.56,145.52,8.2461]
[1727812971811,0.0397,145.56,145.5,20.6176]
[1727812972006,0.0397,145.56,145.46,15.7403]
[1727812972007,0.0397,145.56,145.47,20.6218]
[1727812972292,0.0397,145.56,145.41,22.93007294]
[1727812972293,0.82157947,145.55,145.41,22.93007294]
[1727812972478,0.82157947,145.55,145.41,15.40667294]
[1727812972479,8.2501,145.46,145.41,15.40667294]
[1727812972677,8.2501,145.46,145.41,28.8833]
[1727812973088,8.2501,145.46,145.42,8.2519]
[1727812973293,8.2491,145.47,145.42,8.2519]
[1727812973789,8.2491,145.47,145.41,20.6309]
[1727812973790,0.82157947,145.5,145.41,20.6309]
[1727812974331,6.5607,145.55,145.41,20.6309]
[1727812974332,8.2497,145.46,145.41,20.6309]
[1727812974473,41.2301,145.53,145.41,20.6309]
[1727812974474,8.2492,145.47,145.41,28.8832]
[1727812974682,8.2492,145.47,145.42,8.2519]
[1727812975986,8.2492,145.47,145.41,20.6309]
[1727812975987,8.2486,145.48,145.43,8.2513]
[1727812976488,0.82157947,145.5,145.41,20.6309]
[1727812976688,0.82157947,145.5,145.43,8.2513]
[1727812977096,8.2489,145.48,145.43,8.2513]
[1727812978210,0.82157947,145.5,145.45,8.2497]
[1727812978211,8.2475,145.5,145.45,8.2497]
[1727812978498,8.248,145.49,145.44,8.2503]
[1727812978687,8.2492,145.47,145.42,8.2517]
[1727812978883,8.2492,145.47,145.43,8.2512]
[1727812979482,0.82157947,145.51,145.4,20.632]
[1727812979899,8.2491,145.47,145.43,8.2513]
[1727812980399,8.248,145.49,145.44,8.2504]
[1727812980712,8.2486,145.48,145.44,20.6263]
[1727812981206,0.82157947,145.51,145.45,9.62484257]
[1727812981500,6.5607,145.55,145.46,20.6233]
[1727812981501,8.2464,145.52,145.46,20.6233]
[1727812981682,31.15937947,145.6,145.5,61.94116798]
[1727812981878,21.42707947,145.6,145.51,1.37394316]
[1727812982079,8.2434,145.57,145.53,8.2455]
[1727812982290,8.2429,145.58,145.54,8.245]
[1727812982493,8.2429,145.58,145.53,8.2453]
[1727812982723,0.82157947,145.57,145.46,22.4954]
[1727812982905,8.2463,145.52,145.46,22.4954]
[1727812983096,8.2463,145.52,145.47,8.249]
[1727812983800,8.2474,145.5,145.46,28.873]
[1727812984000,8.2469,145.51,145.46,28.873]
[1727812984201,20.6111,145.56,145.43,61.94116798]
[1727812984202,8.2486,145.48,145.43,8.2509]
[1727812984500,8.2496,145.47,145.42,36.3098]
[1727812984807,20.6164,145.52,145.42,36.3098]
[1727812984808,8.2484,145.49,145.42,36.3098]
[1727812985501,0.82157947,145.51,145.44,8.2508]
[1727812985703,8.248,145.49,145.44,8.2508]
[1727812986110,0.82157947,145.51,145.44,8.2508]
[1727812986407,8.2486,145.48,145.44,8.2507]
[1727812986577,8.248,145.49,145.45,8.2501]
[1727812986778,0.82157947,145.48,145.42,28.8809]
[1727812986979,21.44077947,145.5,145.4,8.253]
[1727812987209,21.44077947,145.5,145.39,20.634]
[1727812987503,8.2492,145.47,145.42,8.2518]
[1727812988109,8.2487,145.48,145.43,8.2512]
[1727812988593,8.248,145.49,145.44,8.2506]
[1727812988976,0.82157947,145.48,145.41,20.6304]
[1727812989180,8.2508,145.44,145.41,20.6304]
[1727812989604,8.2503,145.45,145.41,20.6304]
[1727812989973,0.82157947,145.48,145.41,20.6304]
[1727812990178,0.82157947,145.48,145.42,8.2519]
[1727812990179,8.2492,145.47,145.42,8.2519]
[1727812990881,8.2486,145.48,145.41,20.6304]
[1727812991083,8.2496,145.47,145.42,8.2514]
[1727812991283,20.6191,145.5,145.41,20.6304]
[1727812991483,8.2504,145.45,145.41,20.6304]
[1727812991683,0.82157947,145.49,145.39,8.2535]
[1727812991684,8.2515,145.43,145.39,8.2535]
[1727812991886,8.2515,145.43,145.38,20.8540262]
[1727812992085,0.82157947,145.47,145.38,0.2193262]
[1727812992086,8.2529,145.41,145.38,0.2193262]
[1727812992307,20.6278,145.44,145.38,0.2193262]
[1727812992504,0.82157947,145.43,145.38,0.2193262]
[1727812992717,8.2531,145.4,145.38,0.2193262]
[1727812993003,29.07517947,145.39,145.38,0.2193262]
[1727812993212,20.6385,145.36,145.28,0.8362065]
[1727812993400,0.82157947,145.35,145.28,0.8362065]
[1727812993593,8.2593,145.29,145.28,0.8362065]
[1727812994205,20.0,145.28,145.19,7.17368997]
[1727812994403,20.0,145.28,145.14,1.19238421]
[1727812994404,0.82157947,145.27,145.14,1.19238421]
[1727812994701,0.82157947,145.27,145.16,8.2666]
[1727812994702,8.2626,145.24,145.16,8.2666]
[1727812994904,8.2626,145.24,145.17,8.266]
[1727812994905,0.82157947,145.23,145.17,8.266]
[1727812995591,0.82157947,145.23,145.15,8.2669]
[1727812995811,0.82157947,145.23,145.14,20.6687]
[1727812996106,0.0397,145.27,145.14,20.6687]
[1727812996107,8.2634,145.22,145.14,20.6687]
[1727812996309,9.08547947,145.21,145.15,8.267]
[1727812996522,8.2633,145.22,145.16,8.2666]
[1727812996814,0.82157947,145.21,145.16,8.2666]
[1727812997011,8.2628,145.23,145.16,8.2666]
[1727812997196,8.262,145.25,145.17,20.6648]
[1727812997382,9.08377947,145.24,145.17,28.9304]
[1727812997696,0.82157947,145.23,145.18,8.2654]
[1727812998229,8.2616,145.26,145.19,8.2649]
[1727812998520,0.82157947,145.25,145.19,8.2649]
[1727812999088,0.82157947,145.25,145.17,20.6648]
[1727812999318,8.2628,145.23,145.17,20.6648]
[1727812999625,8.2628,145.23,145.13,104.79032467]
[1727812999626,8.3003,145.27,145.21,8.2637]
[1727812999923,0.82157947,145.26,145.21,8.2637]
[1727813000332,0.0397,145.27,145.23,8.2627]
[1727813000527,0.0397,145.27,145.25,8.2615]
[1727813001715,0.0397,145.27,145.26,8.261]
[1727813002313,8.3003,145.27,145.17,41.329]
[1727813002517,0.82157947,145.26,145.21,8.2633]
[1727813002900,0.82157947,145.26,145.19,20.6617]